[Event "1st Doppelbauer Kiel IM 2022"]
[Site "Kiel"]
[Date "2022.07.03"]
[Round "7.5"]
[White "Arndt, Magnus"]
[Black "Fromm, Marius"]
[Result "1/2-1/2"]
[ECO "B52"]
[WhiteElo "2343"]
[BlackElo "2317"]
[Annotator "TA"]
[PlyCount "106"]
[EventDate "2022.06.30"]
[EventType "tourn"]
[EventCountry "GER"]
[SourceTitle "playchess.com"]
[Source "ChessBase"]
[SourceQuality "1"]
[TimeControl "40/5400+30:1800+30"]

{[%evp 11,106,8,34,-17,24,25,22,18,27,29,31,25,27,27,24,14,22,14,14,-4,21,0,0,8,10,13,62,16,22,18,27,30,34,29,27,0,0,0,0,0,0,0,11,13,122,138,131,131,118,0,185,129,143,94,157,42,27,18,164,160,108,55,66,7,0,0,1,1,1,1,1,6,6,0,0,0,0,0,0,0,0,0,0,0,0,0,0,0,0,0,0,0,0,0,52,0,0]} 1. e4 {[%emt 0:00:05]} c5 {[%emt 0:00:38]} 2. Nf3 {[%emt 0:00:06]} d6 {[%emt 0:00:10]} 3. Bb5+ {[%emt 0:00:06]} Bd7 {[%emt 0:00:21]} 4. Bxd7+ {[%emt 0:00:07]} Qxd7 {[%emt 0:00:03]} 5. O-O {[%emt 0:00:10]} Nf6 {[%emt 0:00:13]} 6. Qe2 {[%emt 0:00:16]} Nc6 {[%emt 0:00:50]} 7. Rd1 {[%emt 0:00:25] B52: Sicilian: Moscow Variation with 3...Bd7.} (7. c3 $14) 7... e6 {[%emt 0:01:53]} (7... g5 $5 {[%cal Rg5g4]}) 8. d4 {[%emt 0:00:07]} cxd4 {[%emt 0:00:04]} 9. Nxd4 {[%emt 0:00:05]} Be7 {[%emt 0:10:31]} 10. c4 {[%emt 0:00:13]} O-O {[%emt 0:00:11]} 11. Nc3 {[%emt 0:00:16]} Nxd4 {[%emt 0:02:43] was the old line (11...Rac8).} 12. Rxd4 {[%emt 0:00:03]} Qc6 {[%emt 0:00:44]} 13. b3 {[%emt 0:02:14]} a6 {[%emt 0:02:52][%cal Ob7b5]} 14. Bb2 {[%emt 0:01:22]} Rab8 {[%emt 0:06:25]} 15. a4 {[%emt 0:16:38] [#]} Rfe8 $146 {[%emt 0:06:29]} ({Predecessor:} 15... Nd7 16. Rd3 Nc5 17. Rg3 g6 18. Qh5 Bf6 19. Qh6 Rfe8 20. Rh3 Nxe4 21. Qxh7+ Kf8 22. Rf3 Re7 23. Rxf6 Nxf6 24. Qh6+ Ke8 25. Qh8+ Kd7 26. Qxb8 Qb6 27. c5 {1-0 (27) Antal,G (2524)-Pop,A (2248) Vienna 2015}) 16. Rd3 {[%emt 0:05:23]} Bf8 {[%emt 0:08:53]} 17. Rad1 {[%emt 0:17:12]} Nd7 {[%emt 0:03:05]} 18. Rh3 {[%emt 0:08:51]} Qb6 {[%emt 0:11:29]} (18... Rbd8 $11) 19. Qc2 {[%emt 0:15:37]} (19. e5 $14 {might be stronger.}) 19... Ne5 $11 {[%emt 0:05:44]} 20. Ne2 {[%emt 0:03:50]} Qc5 {[%emt 0:03:01]} 21. Bd4 {[%emt 0:02:59]} Qc7 {[%emt 0:01:28]} 22. f4 {[%emt 0:02:50]} Ng6 {[%emt 0:00:20]} 23. Rc3 {[%emt 0:01:06]} (23. f5 {keeps more tension.} exf5 24. exf5 Rxe2 25. Qxe2 Nf4 26. Qg4) 23... e5 {[%emt 0:06:27]} 24. Be3 {[%emt 0:04:49]} exf4 {[%emt 0:00:08]} 25. Nxf4 {[%emt 0:00:22]} Nxf4 {[%emt 0:00:09]} 26. Bxf4 {[%emt 0:00:03][%cal Oc4c5]} Qc6 {[%emt 0:00:13]} 27. Rd5 {[%emt 0:18:45][%cal Oc4c5]} Re6 {[%emt 0:00:29]} (27... Rbc8 $11 {remains equal.}) 28. c5 $16 {[%emt 0:00:00] Threatens to win with cxd6.} Qe8 {[%emt 0:07:09]} (28... Rc8 $2 29. cxd6 $1 Qb6+ 30. Qf2 Qxf2+ 31. Kxf2 $18) 29. cxd6 {[%emt 0:00:00]} Rxe4 {[%emt 0:00:09]} 30. Bg3 {[%emt 0:00:00] White is much more active.} (30. d7 $16 Qe6 31. Rc8 (31. Bxb8 Qxd5 32. h3 Re1+ 33. Kh2 Qxd7 $17) 31... Rxf4 32. Rd1) 30... Qe6 $2 {[%emt 0:01:50]} (30... Re1+ $1 $11 31. Kf2 Qe6) 31. Qd1 $18 {[%emt 0:00:00] Black must now prevent Kf1.} Rd8 {[%emt 0:00:53][%cal Od8d6] [#]} 32. h3 {[%emt 0:00:00]} (32. d7 $142 $1) 32... Rd7 {[%emt 0:03:35]} (32... h5 $142) 33. Kh2 {[%emt 0:00:00]} (33. Rc7 $16) 33... f5 $14 {[%emt 0:01:03]} 34. Rc4 {[%emt 0:00:00]} b5 {[%emt 0:03:27]} (34... g6 $11 {and Black has nothing to worry.}) 35. axb5 $18 {[%emt 0:00:00]} axb5 {[%emt 0:00:00]} 36. Rcd4 {[%emt 0:00:00]} ({Reject} 36. Rxb5 $6 f4 37. Bxf4 Rxf4 38. Rxf4 Bxd6 $11) (36. Rc8 $16 h5 37. Qd3 (37. Rxb5 h4 $16)) 36... Rxd4 {[%emt 0:06:39]} 37. Rxd4 {[%emt 0:01:01]} ({White should play} 37. Qxd4 $14 b4 38. Kg1) 37... g5 $11 {[%emt 0:00:32]} 38. Rd5 {[%emt 0:00:31]} h6 $1 $36 {[%emt 0:00:36][%mdl 2048] Black fights for an advantage.} 39. Be5 {[%emt 0:00:15]} Bg7 {[%emt 0:00:45]} 40. Bxg7 {[%emt 0:00:39]} Kxg7 {[%emt 0:00:04][%mdl 4096] Endgame KQR-KQR} 41. Qd4+ {[%emt 0:33:50]} Kg6 {[%emt 0:32:10]} 42. Qd3 {[%emt 0:00:00] aiming for g4.} Kf6 {[%emt 0:00:00]} 43. Qc3+ {[%emt 0:00:00]} Kg6 {[%emt 0:00:00]} 44. Qc5 {[%emt 0:00:00]} h5 {[%emt 0:00:00]} 45. Qxb5 {[%emt 0:00:00] And now Qd3 would win.} Rxd6 {[%emt 0:00:00]} 46. Re5 {[%emt 0:00:00]} Qf7 {[%emt 0:00:00]} 47. Qc5 {[%emt 0:00:00]} Re6 {[%emt 0:00:00]} 48. b4 {[%emt 0:00:00]} Rxe5 {[%emt 0:00:00]} 49. Qxe5 {[%emt 0:00:00]} h4 {[%emt 0:00:00]} 50. b5 {[%emt 0:00:00]} Qb3 {[%emt 0:00:00]} 51. Qe8+ {[%emt 0:00:00]} Kh6 {[%emt 0:00:00]} 52. Qc6+ {[%emt 0:00:00]} Kh7 {[%emt 0:00:00]} ({Black should try} 52... Kg7 $11) 53. b6 {[%emt 0:00:00]} (53. Qf3 $1 $14 Qxb5 54. Qh5+ Kg8 55. Qxg5+ Kf7 56. Qh5+ (56. Qxh4 Qe5+ 57. Qg3 f4 $14) 56... Ke6 57. Qh6+ (57. Qxh4 Qe5+ 58. Qg3 f4 $14) 57... Kf7 58. Qxh4) 53... Qg3+ {[%emt 0:12:35] Weighted Error Value: White=0.19 (very precise) /Black=0.23 (precise)} 1/2-1/2

[Event "1st Doppelbauer Kiel IM 2022"]
[Site "Kiel"]
[Date "2022.07.04"]
[Round "8.1"]
[White "Beeck, Mats"]
[Black "Fromm, Marius"]
[Result "1/2-1/2"]
[ECO "E02"]
[WhiteElo "2169"]
[BlackElo "2317"]
[Annotator "TA"]
[PlyCount "108"]
[EventDate "2022.06.30"]
[EventType "tourn"]
[EventCountry "GER"]
[SourceTitle "playchess.com"]
[Source "ChessBase"]
[SourceQuality "1"]
[TimeControl "40/5400+30:1800+30"]

{[%evp 16,108,69,58,69,46,77,71,70,57,50,56,104,97,114,92,115,89,130,121,120,118,128,102,116,80,144,154,161,154,180,95,197,211,201,187,208,162,148,126,124,116,148,104,96,43,38,49,100,101,114,115,106,85,87,58,62,4,3,0,0,0,0,0,0,0,0,0,0,0,8,8,8,8,8,8,8,8,8,8,8,8,186,105,107,111,120,8,8,8,8,8,8,8,400]} 1. d4 {[%emt 0:00:29]} Nf6 {[%emt 0:00:08]} 2. c4 {[%emt 0:00:05]} e6 {[%emt 0:00:05]} 3. Nf3 {[%emt 0:00:26]} d5 {[%emt 0:00:10]} 4. g3 {[%emt 0:01:43]} dxc4 {[%emt 0:05:30]} 5. Bg2 {[%emt 0:00:23]} Be7 {[%emt 0:02:30]} 6. Qa4+ {[%emt 0:04:08]} Nbd7 {[%emt 1:25:07]} 7. Qxc4 {[%emt 0:02:33]} a6 {[%emt 0:00:00]} 8. Qc2 {[%emt 0:00:41]} O-O {[%emt 0:00:00]} 9. O-O {[%emt 0:02:07]} Ra7 {[%emt 0:00:00] E02: Open Catalan: 5 Qa4+.} 10. Rd1 {[%emt 0:05:46]} b6 {[%emt 0:00:00]} 11. Ne5 {[%emt 0:03:39] [#] Hoping for Nc6.} Bb7 $146 {[%emt 0:00:00] White is better.} ({Predecessor:} 11... Nb8 12. Nc3 Bb7 13. e4 Nbd7 14. Bf4 Nxe5 15. Bxe5 Nd7 16. Bf4 Bd6 17. Be3 Qa8 {1-0 (48) Yu,Y (2760)-Hevia Alejano,C (2488) Chess.com INT 2018}) 12. Nc6 {[%emt 0:02:48] White is much more active. The black rooks are badly placed.} Bxc6 {[%emt 0:00:00]} 13. Qxc6 {[%emt 0:02:28]} Nd5 {[%emt 0:00:00]} (13... Nb8 $14 14. Qc2 Nbd7) 14. a3 $16 {[%emt 0:08:01]} (14. Bxd5 Nb8 15. Qc2 Qxd5 $14) 14... b5 {[%emt 0:00:00]} 15. Nd2 {[%emt 0:09:00]} ({Don't do} 15. Bxd5 Nb8 $14) 15... N7b6 {[%emt 0:00:00]} 16. Qc2 {[%emt 0:07:37]} Qc8 {[%emt 0:00:00]} 17. e4 {[%emt 0:10:11]} Nf6 {[%emt 0:00:00]} 18. Nb3 $1 {[%emt 0:01:27] Inhibits c5.} Rd8 {[%emt 0:00:00]} 19. Bf4 {[%emt 0:02:01]} Nc4 {[%emt 0:00:00] Prevents Na5.} 20. Rac1 {[%emt 0:05:49]} Nh5 {[%emt 0:00:00]} (20... h6 $142) 21. Bd2 {[%emt 0:01:51]} Nxd2 {[%emt 0:00:00]} 22. Qxd2 {[%emt 0:06:40]} Nf6 {[%emt 0:00:00]} 23. Qe3 {[%emt 0:02:16]} (23. Na5 $18 Ra8 24. Nc6) 23... a5 {[%emt 0:00:00]} (23... c6 $16) 24. d5 $1 $18 {[%emt 0:02:32]} Ra6 {[%emt 0:00:00]} 25. Nc5 {[%emt 0:00:44]} Rb6 {[%emt 0:00:00]} 26. dxe6 {[%emt 0:01:51]} fxe6 {[%emt 0:00:00]} 27. b4 {[%emt 0:02:20]} axb4 {[%emt 0:00:00]} 28. axb4 {[%emt 0:00:02]} e5 {[%emt 0:00:00]} 29. Qb3+ {[%emt 0:00:43]} Kh8 {[%emt 0:00:00]} 30. Qf7 {[%emt 0:02:42]} (30. Rxd8+ $16 Qxd8 31. Qc3) 30... Rxd1+ $14 {[%emt 0:00:00]} 31. Rxd1 {[%emt 0:00:02]} Rd6 {[%emt 0:00:00]} (31... Bd6 $14) 32. Ra1 $16 {[%emt 0:04:06]} Qf8 {[%emt 0:00:00]} 33. Qxf8+ {[%emt 0:03:50]} Bxf8 {[%emt 0:00:00]} 34. Ra8 {[%emt 0:00:21]} Kg8 {[%emt 0:00:00]} 35. Bh3 {[%emt 0:01:53]} Kf7 {[%emt 0:00:00] [#] Prevents Be6+.} 36. Ra7 {[%emt 0:01:26]} (36. Be6+ $1 $14 Ke7 37. Rc8) 36... Rd1+ $11 {[%emt 0:00:00]} 37. Kg2 {[%emt 0:00:02]} Bd6 {[%emt 0:00:00]} 38. Rb7 {[%emt 0:00:59]} Rc1 {[%emt 0:12:09]} ({But not} 38... Bxc5 39. bxc5 Kf8 40. Rxc7 $16) 39. Kf3 {[%emt 0:03:39]} Rc3+ {[%emt 0:01:33]} 40. Ke2 {[%emt 0:00:29]} Rc2+ {[%emt 0:02:14]} 41. Kf3 {[%emt 0:02:51]} Rc3+ {[%emt 0:03:28]} 42. Ke2 {[%emt 0:04:18]} Ke7 {[%emt 0:01:41]} 43. Rxb5 {[%emt 0:01:32]} ({Of course not} 43. Kd2 Rc4 $15) 43... Bxc5 {[%emt 0:00:33][%mdl 64] Remove Defender} (43... Rc2+ {keeps more tension.} 44. Ke3 Rc4 45. Nd3 Rxe4+ 46. Kf3 g6) 44. Rxc5 {[%emt 0:01:14]} Rxc5 {[%emt 0:00:10]} 45. bxc5 {[%emt 0:00:05] Black must now prevent Ke3.} Nxe4 {[%emt 0:00:03][%mdl 4096] Endgame KB-KN} 46. Bf5 {[%emt 0:00:52][%csl LRe4,LRh7]} Nxc5 {[%emt 0:03:11]} 47. Bxh7 {[%emt 0:00:43]} Kf6 {[%emt 0:01:01]} 48. Bb1 {[%emt 0:03:13]} e4 $2 {[%emt 0:00:45] [#]} (48... g5 $11 {and Black stays safe.}) 49. Ke3 {[%emt 0:01:42]} ({White should try} 49. h4 $1 $18) 49... g5 $16 {[%emt 0:04:54]} 50. Bxe4 {[%emt 0:01:38] Strongly threatening f4.} Ke5 {[%emt 0:00:17]} 51. f4+ {[%emt 0:00:18]} (51. Bc6 $16) 51... gxf4+ $11 {[%emt 0:00:02] The position is equal.} 52. gxf4+ {[%emt 0:00:05]} Kf6 {[%emt 0:00:06]} 53. Bc2 {[%emt 0:00:40]} Ne6 {[%emt 0:00:04]} 54. h4 {[%emt 0:00:27]} Nxf4 $2 {[%emt 0:00:14][%mdl 40960] Weighted Error Value: White=0.19 (very precise) /Black=0.18 (very precise) . An unexpected result.} 1/2-1/2

[Event "1st Doppelbauer Kiel IM 2022"]
[Site "Kiel"]
[Date "2022.07.04"]
[Round "8.2"]
[White "Lanka, Zigurds"]
[Black "Arndt, Magnus"]
[Result "1/2-1/2"]
[ECO "C77"]
[WhiteElo "2397"]
[BlackElo "2343"]
[Annotator "TA"]
[PlyCount "35"]
[EventDate "2022.06.30"]
[EventType "tourn"]
[EventCountry "GER"]
[SourceTitle "playchess.com"]
[Source "ChessBase"]
[SourceQuality "1"]
[TimeControl "40/5400+30:1800+30"]

{[%evp 13,35,0,16,8,11,0,12,-4,30,24,26,14,18,-7,0,-57,-10,-17,61,52,53,46,51,50]} 1. e4 {[%emt 0:00:03]} e5 {[%emt 0:00:08]} 2. Nf3 {[%emt 0:00:05]} Nc6 {[%emt 0:00:05]} 3. Bb5 {[%emt 0:00:07][%cal Bf1b5,Bb5a4,Ba4b3][%mdl 32]} a6 {[%emt 0:00:07]} 4. Ba4 {[%emt 0:00:07]} Nf6 {[%emt 0:00:04]} 5. d3 {[%emt 0:00:11]} b5 {[%emt 0:00:07]} 6. Bb3 {[%emt 0:00:06]} Be7 {[%emt 0:00:03]} 7. Nc3 {[%emt 0:00:58]} d6 {[%emt 0:01:02]} 8. a3 {[%emt 0:02:33] C77: Ruy Lopez: 3...a6 4 Ba4 Nf6, unusual lines.} O-O {[%emt 0:00:12]} 9. Nd5 {[%emt 0:02:10] [#]} Rb8 $146 {[%emt 0:14:21]} ({Predecessor:} 9... Nxd5 10. Bxd5 Qe8 11. O-O Rb8 12. h3 Kh8 13. Re1 f5 14. c3 Bf6 15. d4 f4 16. dxe5 Nxe5 {0-1 (32) Martinez Alcantara,J (2598)-Aronian,L (2785) Saint Louis 2022}) 10. c3 {[%emt 0:05:15] The position is equal.} Na5 {[%emt 0:08:09]} 11. Nxe7+ {[%emt 0:07:53]} Qxe7 {[%emt 0:00:08]} 12. Bc2 {[%emt 0:00:23]} c5 {[%emt 0:09:30]} 13. b4 {[%emt 0:02:27]} Nc6 {[%emt 0:00:30]} 14. bxc5 {[%emt 0:02:23]} (14. O-O $11) 14... dxc5 {[%emt 0:00:31]} (14... d5 $15) 15. Qe2 {[%emt 0:02:48]} b4 {[%emt 0:16:57]} (15... Bg4 $11) 16. Ba4 $14 {[%emt 0:02:34] White is slightly better.} Bd7 {[%emt 0:00:41]} 17. axb4 {[%emt 0:01:00]} cxb4 {[%emt 0:00:15]} 18. O-O {[%emt 0:01:49] Weighted Error Value: White=0.17 (very precise) /Black=0.25 (precise)} 1/2-1/2

[Event "1st Doppelbauer Kiel IM 2022"]
[Site "Kiel"]
[Date "2022.07.04"]
[Round "8.3"]
[White "Zavgorodniy, Sergiy"]
[Black "Barseghyan, Armen Ar."]
[Result "0-1"]
[ECO "B31"]
[WhiteElo "2423"]
[BlackElo "2378"]
[Annotator "TA"]
[PlyCount "82"]
[EventDate "2022.06.30"]
[EventType "tourn"]
[EventCountry "GER"]
[SourceTitle "playchess.com"]
[Source "ChessBase"]
[SourceQuality "1"]
[TimeControl "40/5400+30:1800+30"]

{[%evp 14,82,10,2,12,10,15,8,18,9,-4,-14,-13,-9,0,-26,0,0,10,0,0,0,0,-33,0,0,0,-28,-26,-27,0,0,23,-38,-51,-42,0,-2,0,-457,-435,-414,-412,-489,-477,-647,-647,-671,-685,-670,-684,-652,-650,-749,-681,-748,-785,-791,-795,-783,-776,-760,-780,-777,-787,-785,-759,-743,-769,-772,-747]} 1. e4 {[%emt 0:00:04]} c5 {[%emt 0:00:23]} 2. Nf3 {[%emt 0:00:07]} Nc6 {[%emt 0:00:19]} 3. Bb5 {[%emt 0:00:13]} g6 {[%emt 0:00:15]} 4. O-O {[%emt 0:00:13]} Bg7 {[%emt 0:00:08]} 5. c3 {[%emt 0:00:04]} Nf6 {[%emt 0:00:17]} 6. Re1 {[%emt 0:00:06]} O-O {[%emt 0:00:17]} 7. h3 {[%emt 0:00:08]} Qb6 {[%emt 0:01:19]} 8. Ba4 {[%emt 0:00:28] 8.a4 is the modern continuation.} d6 {[%emt 0:00:52] B31: Sicilian: 2...Nc6 3 Bb5 g6.} 9. d3 {[%emt 0:07:08]} Bd7 {[%emt 0:05:15]} 10. Nbd2 {[%emt 0:00:48] [#]} Qa6 $146 {[%emt 0:14:07] The position is equal.} ({Predecessor:} 10... Rac8 11. Nf1 Ne5 12. Nxe5 dxe5 13. Bxd7 Nxd7 14. Be3 Rfd8 15. Qb3 Qc6 16. Red1 Nf8 {0-1 (50) Alekseev,E (2589)-Abdusattorov,N (2651) Chess.com INT 2022}) 11. Nf1 {[%emt 0:06:12]} Nd4 {[%emt 0:13:12]} 12. Bc2 {[%emt 0:11:52]} Nxc2 {[%emt 0:01:42]} 13. Qxc2 {[%emt 0:00:08]} b5 {[%emt 0:00:31]} 14. Bg5 {[%emt 0:00:53]} Qb7 {[%emt 0:09:58]} (14... h6 $5 {[%cal Rh6g5]} 15. Bxf6 Bxf6 $11) 15. Qd2 {[%emt 0:13:04]} Bc6 {[%emt 0:02:38]} 16. Ng3 {[%emt 0:18:58]} Rfe8 {[%emt 0:00:58]} 17. Qf4 {[%emt 0:02:30]} Nd7 {[%emt 0:05:27]} 18. Rad1 {[%emt 0:10:50]} e5 {[%emt 0:02:49]} (18... f6 $5 {[%cal Re7e5]} 19. Bh6 g5 20. Bxg5 e5 $15) 19. Qh4 {[%emt 0:00:42]} d5 {[%emt 0:10:41]} 20. exd5 {[%emt 0:02:19]} Bxd5 {[%emt 0:00:13]} 21. Ne4 {[%emt 0:00:06] Inhibits f6.} Qb6 {[%emt 0:05:42] Against Nd6} ({Better is} 21... Qc6) 22. c4 $11 {[%emt 0:01:45]} Bb7 {[%emt 0:04:25]} 23. Bh6 {[%emt 0:00:06]} (23. cxb5 $11 a6 24. bxa6 Rxa6 25. Nfd2) 23... b4 {[%emt 0:02:55]} 24. g4 {[%emt 0:08:19]} f5 {[%emt 0:04:08]} 25. Neg5 {[%emt 0:00:06] [#] aiming for Bxg7.} Bf6 {[%emt 0:00:13] And now ...Bxf3 would win. A strong pair of Bishops.} 26. Re3 {[%emt 0:01:11][%mdl 8192] Black converts the advantage convincingly.} (26. Bg7 $1 $11 {and White has nothing to worry.} Bxg5 27. Nxg5) 26... f4 {[%emt 0:03:07]} 27. Re4 {[%emt 0:00:08]} Bxe4 {[%emt 0:00:18] Dancing on a razor blade.} 28. dxe4 {[%emt 0:00:02]} Re7 {[%emt 0:00:22] Black is clearly winning.} 29. Rd5 {[%emt 0:02:16]} Qc7 {[%emt 0:00:39]} 30. Nd2 {[%emt 0:00:48]} Nb6 {[%emt 0:02:17]} 31. f3 {[%emt 0:00:17]} Nxd5 {[%emt 0:01:00]} 32. exd5 {[%emt 0:00:06]} e4 {[%emt 0:00:05]} 33. Ndxe4 {[%emt 0:00:25] [#]} Rxe4 {[%emt 0:00:05]} 34. fxe4 {[%emt 0:00:06]} Qe7 {[%emt 0:01:08] White must now prevent ...Re8.} 35. e5 {[%emt 0:02:56]} Qxe5 {[%emt 0:02:13] ( -> ...Qe2)} 36. Nf3 {[%emt 0:00:08]} Qe3+ {[%emt 0:02:24]} 37. Qf2 {[%emt 0:00:07]} Re8 {[%emt 0:00:53] Threatens to win with ...Qd3.} 38. Qxe3 {[%emt 0:01:14]} Rxe3 {[%emt 0:00:06]} 39. Kf2 {[%emt 0:00:16]} Bxb2 {[%emt 0:02:12]} 40. Bxf4 {[%emt 0:00:30]} Ra3 {[%emt 0:00:12]} 41. d6 {[%emt 0:30:53]} Kf7 {[%emt 0:30:45] Weighted Error Value: White=0.42/Black=0.06 (flawless)} 0-1